bitfinex/quotes_BTCUSD_20250417
["timestamp","ask_amount","ask_price","bid_price","bid_amount"]
[1744906360856,0.00236337,84501.0,84500.0,0.24852016]
[1744906361371,0.00236337,84501.0,84497.0,0.01183473]
[1744906361372,0.01419754,84501.0,84497.0,0.24852892]
[1744906361872,0.01419754,84501.0,84498.0,0.24852646]
[1744906362029,0.01183459,84498.0,84493.0,0.28527595]
[1744906362242,0.01183445,84499.0,84493.0,0.29711108]
[1744906362441,0.01419796,84498.0,84494.0,0.01183515]
[1744906362670,0.01183487,84496.0,84493.0,0.05745554]
[1744906362866,0.00236337,84495.0,84493.0,0.2367033]
[1744906363315,0.00236337,84495.0,84493.0,0.28522178]
[1744906363518,0.00236337,84495.0,84493.0,0.29411081]
[1744906363668,0.00236337,84495.0,84494.0,0.23670319]
[1744906363872,0.23668406,84501.0,84496.0,0.01183487]
[1744906363873,0.23905018,84500.0,84496.0,0.01183487]
[1744906364081,0.25088895,84499.0,84494.0,0.24853834]
[1744906364281,0.24852558,84499.0,84494.0,0.01183515]
[1744906364485,0.2390579,84498.0,84493.0,0.06924011]
[1744906364646,0.2390579,84498.0,84494.0,0.01183515]
[1744906364988,0.25089249,84498.0,84494.0,0.24853831]
[1744906365205,0.23669535,84497.0,84494.0,0.24853831]
[1744906365391,0.00236337,84496.0,84494.0,0.24853831]
[1744906367050,0.00236337,84496.0,84494.0,0.01183515]
[1744906367257,0.23669507,84497.0,84494.0,0.01183515]
[1744906367378,0.23669507,84497.0,84493.0,0.05740482]
[1744906367379,0.01183487,84496.0,84493.0,0.05740482]
[1744906367584,0.00236337,84495.0,84491.0,0.23671148]
[1744906367970,0.00236337,84495.0,84491.0,0.24551457]
[1744906368166,0.2367088,84492.0,84491.0,0.00880309]
[1744906368387,0.2367088,84492.0,84487.0,0.45327312]
[1744906368388,0.011836,84488.0,84485.0,0.23672785]
[1744906368508,0.24855014,84490.0,84486.0,0.57672309]
[1744906368723,0.24855014,84490.0,84480.0,0.44627312]
[1744906368724,0.01183628,84486.0,84480.0,0.44627312]
[1744906368932,0.24859077,84477.0,84476.0,0.45327312]
[1744906369149,0.24858837,84477.0,84476.0,0.00880398]
[1744906369354,0.24858837,84477.0,84467.0,0.45327312]
[1744906369355,0.23677092,84470.0,84467.0,0.45327312]
[1744906369556,0.24861295,84469.0,84467.0,0.04702449]
[1744906369761,0.24861195,84469.0,84465.0,0.24862279]
[1744906369960,0.24861417,84469.0,84466.0,0.23678113]
[1744906370299,0.0118381,84473.0,84469.0,0.24861147]
[1744906370500,0.0004497,84472.0,84470.0,0.23676818]
[1744906370996,0.0004497,84472.0,84471.0,0.23676764]
[1744906371154,0.0014497,84472.0,84471.0,0.23676764]
[1744906371358,0.0004497,84472.0,84471.0,0.23676764]
[1744906371562,0.0014497,84472.0,84471.0,0.23676764]
[1744906371784,0.0014497,84472.0,84471.0,0.35858289]
[1744906371967,0.0014497,84472.0,84471.0,0.69621555]
[1744906374617,0.0014497,84472.0,84471.0,0.23676764]
[1744906375579,0.0014497,84472.0,84469.0,0.24861147]
[1744906375580,0.0014497,84472.0,84468.0,0.0118388]
[1744906375770,0.23821498,84472.0,84469.0,0.2367723]
[1744906376002,0.23677605,84468.0,84467.0,0.04891181]
[1744906376180,0.24860614,84471.0,84467.0,0.06075075]
[1744906376393,0.23677124,84470.0,84467.0,0.24861753]
[1744906377650,0.01183866,84469.0,84467.0,0.23677724]
[1744906377998,0.23677098,84470.0,84467.0,0.0599141]
[1744906378161,0.25097287,84470.0,84467.0,0.04807516]
[1744906378362,0.2486095,84470.0,84466.0,0.01183908]
[1744906378564,0.23678446,84465.0,84464.0,0.00874634]
[1744906378764,0.24862869,84464.0,84460.0,0.74703233]
[1744906378962,0.24862869,84464.0,84460.0,0.24863781]
[1744906379206,0.23678541,84465.0,84462.0,0.2367924]
[1744906379409,0.0118395,84463.0,84460.0,0.05785674]
[1744906379639,0.0118395,84463.0,84459.0,0.01184006]
[1744906379844,0.24863257,84462.0,84457.0,0.01184034]
[1744906380049,0.23681426,84455.0,84451.0,0.34]
[1744906380267,0.24865573,84455.0,84451.0,0.34]
[1744906380495,0.23682652,84450.0,84449.0,0.0004222]
[1744906380693,0.23682372,84451.0,84449.0,0.0004222]
[1744906381011,0.23664125,84450.0,84449.0,0.04818027]
[1744906381215,0.23664125,84450.0,84449.0,0.0004222]
[1744906381810,0.23764125,84450.0,84449.0,0.0004222]
[1744906382014,0.28604125,84450.0,84449.0,0.0004222]
[1744906382217,0.28704125,84450.0,84449.0,0.0004222]
[1744906382533,0.28704125,84450.0,84449.0,0.04838683]
[1744906382848,0.28708125,84450.0,84449.0,0.04838683]
[1744906384274,0.21313826,84450.0,84449.0,0.04838683]
[1744906384477,0.21550163,84450.0,84449.0,0.04838683]
[1744906385165,0.21550163,84450.0,84430.0,0.0004214]
[1744906385166,0.23687981,84431.0,84430.0,0.0004214]
[1744906385894,0.05984371,84433.0,84430.0,0.0004214]
[1744906386126,0.0451,84444.0,84438.0,0.011843]
[1744906386334,0.23686579,84436.0,84434.0,0.51023444]
[1744906386615,0.23687764,84432.0,84430.0,0.0004214]
[1744906386952,0.23687764,84432.0,84430.0,0.2374392]
[1744906387155,0.23687829,84432.0,84430.0,0.00055667]
[1744906387346,0.23924318,84431.0,84430.0,0.00055667]
[1744906387546,0.33364318,84431.0,84430.0,0.00055667]
[1744906387744,0.33127981,84431.0,84430.0,0.04942567]
[1744906387929,0.33127981,84431.0,84430.0,0.00055667]
[1744906388875,0.33127981,84431.0,84430.0,0.04902203]
[1744906389718,0.0944,84431.0,84430.0,0.04902203]
[1744906389915,4e-05,84432.0,84431.0,0.23687981]
[1744906390618,4e-05,84432.0,84430.0,0.04902203]
[1744906391074,4e-05,84432.0,84431.0,0.23687981]
[1744906391482,4e-05,84432.0,84431.0,0.23924852]
[1744906391654,4e-05,84432.0,84431.0,0.23687981]
[1744906391864,4e-05,84432.0,84431.0,0.23924836]
[1744906392189,4e-05,84432.0,84431.0,0.23687981]
[1744906393484,0.23691701,84432.0,84430.0,0.04902203]
[1744906393685,4e-05,84432.0,84431.0,0.23687981]
[1744906394627,4e-05,84432.0,84430.0,0.04902203]
[1744906395016,4e-05,84432.0,84431.0,0.23687981]
[1744906395214,4e-05,84432.0,84431.0,0.23924839]
[1744906395959,4e-05,84432.0,84431.0,0.3586963]
[1744906396156,4e-05,84432.0,84431.0,0.35632772]
[1744906396869,4e-05,84432.0,84431.0,0.75676857]
[1744906397368,4e-05,84432.0,84431.0,0.75776857]
[1744906398308,0.00204,84450.0,84449.0,0.57682932]
[1744906398507,0.00204,84450.0,84449.0,0.71081808]
[1744906398733,0.00204,84450.0,84449.0,0.69627723]
[1744906400490,0.00204,84450.0,84449.0,0.34]
[1744906400796,0.00204,84450.0,84449.0,0.57682932]
[1744906401320,0.0118423,84443.0,84440.0,0.51042087]
[1744906401511,0.24867683,84447.0,84444.0,0.01184216]
[1744906401717,0.236838,84446.0,84444.0,0.35184216]
[1744906401837,0.2368445,84444.0,84440.0,0.23685453]
[1744906402054,0.24870023,84439.0,84435.0,0.24871181]
[1744906402235,0.01184286,84439.0,84435.0,0.24871181]
[1744906402902,0.01184286,84439.0,84418.0,0.26060697]
[1744906402903,0.01184371,84433.0,84424.0,0.01184497]
[1744906403058,0.01184427,84429.0,84424.0,0.01198017]
[1744906403264,0.24873149,84429.0,84426.0,0.01184469]
[1744906403619,0.01184413,84430.0,84427.0,0.24873348]
[1744906403800,0.01197898,84430.0,84427.0,0.01184455]
[1744906403999,0.2487303,84429.0,84425.0,0.23689626]
[1744906404207,0.01184427,84429.0,84425.0,0.24874109]
[1744906404678,0.00013485,84430.0,84426.0,0.01184469]
[1744906404882,0.00013485,84430.0,84428.0,0.23688739]
[1744906405086,0.00013485,84430.0,84427.0,0.01184455]
[1744906405422,0.24886222,84430.0,84425.0,0.24874123]
[1744906405544,0.0107815,84428.0,84424.0,0.04749894]
[1744906405746,0.2369191,84417.0,84416.0,0.07171799]
[1744906406151,0.2369191,84417.0,84416.0,0.1192613]
[1744906406707,0.24875946,84419.0,84416.0,0.1192613]
[1744906407084,0.24875946,84419.0,84416.0,0.0242613]
[1744906407085,0.0487,84417.0,84416.0,0.0242613]
[1744906407293,0.23692191,84416.0,84411.0,0.002]
[1744906407511,0.23692055,84417.0,84411.0,0.002]
[1744906408273,0.23692055,84417.0,84415.0,0.04784447]
[1744906408787,0.23692191,84416.0,84415.0,0.04784447]
[1744906408986,0.01184581,84418.0,84415.0,0.04784447]
[1744906409191,0.01184567,84419.0,84415.0,0.0596907]
[1744906409192,0.23691404,84419.0,84415.0,0.0596907]
[1744906409386,0.01184581,84418.0,84415.0,0.04784447]
[1744906410108,0.23692191,84416.0,84415.0,0.04784447]
[1744906410655,0.24876287,84418.0,84415.0,0.04784447]
[1744906411780,0.23691914,84417.0,84415.0,0.04784447]
[1744906412185,0.23692191,84416.0,84415.0,0.04784447]
[1744906412646,0.01384581,84418.0,84415.0,0.04784447]
[1744906412860,0.23692191,84416.0,84415.0,0.04784447]
[1744906413063,0.23692184,84417.0,84415.0,0.04784447]
[1744906413895,0.23692184,84417.0,84401.0,0.34]
[1744906413896,0.01184763,84405.0,84401.0,0.34]
[1744906414133,0.23695574,84404.0,84401.0,0.3518482]
[1744906414386,0.24879794,84406.0,84401.0,0.40879154]
[1744906414599,0.01184749,84406.0,84401.0,0.40879154]
[1744906414876,0.2379214,84417.0,84408.0,0.2487895]
[1744906415125,0.1634,84415.0,84409.0,0.01184707]
[1744906415384,0.17524623,84415.0,84411.0,0.24878273]
[1744906415648,0.1634,84415.0,84412.0,0.24877898]
[1744906416114,0.24990117,84417.0,84413.0,0.23692995]
[1744906416298,0.00113483,84417.0,84415.0,0.236923]
[1744906416528,0.00113483,84417.0,84416.0,0.23692191]
[1744906416848,0.00113483,84417.0,84416.0,0.35636982]
[1744906417554,0.00113483,84417.0,84416.0,0.69636982]
[1744906417808,0.0455,84451.0,84448.0,0.2368321]
[1744906418046,0.0455,84451.0,84443.0,0.23684358]
[1744906418047,0.01184146,84449.0,84443.0,0.23684358]
[1744906418313,0.01184188,84446.0,84443.0,0.23684358]
[1744906418519,0.24867769,84447.0,84443.0,0.23684358]
[1744906418803,0.01184188,84446.0,84443.0,0.2456362]
[1744906418977,0.01184146,84449.0,84443.0,0.2456362]
[1744906418978,0.01184146,84449.0,84443.0,0.02063492]
[1744906419136,0.24867121,84449.0,84446.0,0.23683729]
[1744906419337,0.01184174,84447.0,84443.0,0.00879262]
[1744906419550,0.2486781,84447.0,84443.0,0.23684548]
[1744906419765,0.24867987,84446.0,84443.0,0.23684548]
[1744906419966,0.24867613,84448.0,84445.0,0.23683973]
[1744906420170,0.01184174,84447.0,84442.0,0.23684671]
[1744906420373,0.0118416,84448.0,84443.0,0.23684542]
[1744906420565,0.0118416,84448.0,84444.0,0.23684173]
[1744906420859,0.00217536,84450.0,84447.0,0.01184174]
[1744906421077,0.0008432,84466.0,84449.0,0.34]
[1744906421276,0.00872074,84506.0,84467.0,0.01183894]
[1744906421277,0.0476,84487.0,84467.0,0.01183894]
[1744906421458,0.23673613,84483.0,84469.0,0.57677325]
[1744906421662,0.00045109,84470.0,84469.0,0.69622116]
[1744906423500,0.00045109,84470.0,84469.0,0.57677325]
[1744906425837,0.0008434,84480.0,84479.0,0.23674522]
[1744906426055,0.00097865,84480.0,84479.0,0.71073398]
[1744906426252,0.0474442,84503.0,84493.0,0.23670599]
[1744906426457,0.0008442,84503.0,84502.0,0.23668078]
[1744906426665,0.0479,84527.0,84517.0,0.34]
[1744906426865,0.0479,84527.0,84514.0,0.01183235]
[1744906426866,0.0006866,84536.0,84535.0,0.57658839]
[1744906427074,0.0008426,84542.0,84535.0,0.57658839]
[1744906427075,0.00082045,84542.0,84539.0,0.01182886]
[1744906427281,0.00082045,84542.0,84540.0,0.12181315]
[1744906427480,0.00082045,84542.0,84530.0,0.34]
[1744906427481,0.01182886,84539.0,84530.0,0.35183011]
[1744906427720,0.01182927,84536.0,84533.0,0.00866948]
[1744906427924,0.00082045,84542.0,84539.0,0.24840558]
[1744906428181,0.00082045,84542.0,84541.0,0.2365716]
[1744906428394,0.0008424,84555.0,84554.0,0.57653523]
[1744906428618,0.0008424,84555.0,84546.0,0.01182788]
[1744906428619,0.0008424,84555.0,84548.0,0.0118276]
[1744906428834,0.0008424,84555.0,84552.0,0.24836608]
[1744906429043,0.0008424,84555.0,84548.0,0.0118276]
[1744906429044,0.01182844,84542.0,84531.0,0.01182997]
[1744906429250,0.01182886,84539.0,84533.0,0.34]
[1744906429461,0.01182886,84539.0,84532.0,0.51047911]
[1744906429462,0.01182886,84539.0,84532.0,0.52230894]
[1744906429699,0.23656386,84544.0,84530.0,0.05576001]
[1744906429700,0.0471,84556.0,84554.0,0.23653523]
[1744906429906,0.01182886,84539.0,84534.0,0.23659119]
[1744906430079,0.01182886,84539.0,84530.0,0.04701159]
[1744906430080,0.01182969,84533.0,84530.0,0.04701159]
[1744906430296,0.01183039,84528.0,84523.0,0.51047911]
[1744906430580,0.01183067,84526.0,84523.0,0.51047911]
[1744906430894,0.23660417,84530.0,84526.0,0.01183067]
[1744906431103,0.01182983,84532.0,84528.0,0.01183039]
[1744906431308,0.01182969,84533.0,84529.0,0.24843338]
[1744906431524,0.06002913,84537.0,84532.0,0.01182983]
[1744906431746,0.01182955,84534.0,84531.0,0.01182997]
[1744906431920,0.0482,84537.0,84531.0,0.01182997]
[1744906432167,0.0482,84537.0,84515.0,0.26030774]
[1744906432168,0.01183067,84526.0,84517.0,0.0506105]
[1744906432320,0.24845581,84523.0,84517.0,0.0506105]
[1744906432517,0.23661763,84525.0,84522.0,0.34]
[1744906432725,0.24844888,84525.0,84522.0,0.34]
[1744906432926,0.23662198,84523.0,84522.0,0.34]
[1744906433186,0.23662198,84523.0,84491.0,0.01183558]
[1744906433187,0.23665558,84511.0,84510.0,0.00013525]
[1744906433625,0.24851369,84503.0,84500.0,0.51941723]
[1744906433778,0.23668358,84501.0,84500.0,0.51941723]
[1744906433953,0.23668358,84501.0,84500.0,0.85941723]
[1744906434164,0.23668358,84501.0,84500.0,0.56738442]
[1744906434541,0.23668358,84501.0,84500.0,0.90738442]
[1744906436635,0.23668358,84501.0,84500.0,0.05690531]
[1744906436778,0.24851369,84503.0,84500.0,0.05690531]
[1744906436779,0.01183389,84503.0,84500.0,0.05690531]
[1744906436987,0.01183361,84505.0,84496.0,0.04690125]
[1744906437256,0.01183417,84501.0,84495.0,0.01183501]
[1744906437461,0.01183417,84501.0,84493.0,0.23670491]
[1744906437462,0.01183319,84508.0,84499.0,0.01183445]
[1744906437623,0.01183389,84503.0,84498.0,0.01183459]
[1744906437825,0.01183389,84503.0,84498.0,0.008775]
[1744906438031,0.01183417,84501.0,84497.0,0.34]
[1744906438228,0.23669199,84498.0,84497.0,0.34]
[1744906438458,0.23669759,84496.0,84495.0,0.04874023]
[1744906439241,0.24852658,84498.0,84495.0,0.04874023]
[1744906439636,0.23670599,84493.0,84492.0,0.247]
[1744906439820,0.00236337,84494.0,84492.0,0.30407395]
[1744906440018,0.16728,84510.0,84497.0,0.01183473]
[1744906440224,0.23667936,84503.0,84499.0,0.24852285]
[1744906440429,0.0483,84505.0,84500.0,0.01183431]
[1744906440628,0.0483,84505.0,84503.0,0.23667724]
[1744906440839,0.00013507,84511.0,84509.0,0.23666007]
[1744906441045,0.00013507,84511.0,84509.0,0.23902663]
[1744906441270,0.00013507,84511.0,84509.0,0.23666007]
[1744906441723,0.00013507,84511.0,84510.0,0.34]
[1744906442769,0.00013507,84511.0,84510.0,0.46044791]
[1744906442970,0.00013507,84511.0,84510.0,0.47498876]
[1744906443581,0.00013507,84511.0,84510.0,0.13498876]
[1744906444029,0.00013507,84511.0,84510.0,0.12044791]
[1744906444439,0.00013507,84511.0,84510.0,0.12281409]
[1744906444795,0.00013507,84511.0,84510.0,0.12044791]
[1744906446341,0.00013507,84511.0,84510.0,0.001]
[1744906447571,0.00013507,84511.0,84510.0,0.12281419]
[1744906447784,0.00013507,84511.0,84510.0,0.13735504]
[1744906447988,0.00013507,84511.0,84510.0,0.13498876]
[1744906448608,0.00013507,84511.0,84510.0,0.12044791]
[1744906449184,0.00013507,84511.0,84510.0,0.46044791]
[1744906450891,0.00013507,84511.0,84510.0,0.69710629]
[1744906451087,0.00013507,84511.0,84510.0,0.57765838]
[1744906451670,0.00013507,84511.0,84510.0,0.69710629]
[1744906452286,0.00013507,84511.0,84510.0,0.57765838]
[1744906452438,0.00113507,84511.0,84510.0,0.001]
[1744906452800,0.00113507,84511.0,84510.0,0.23765838]
[1744906453224,0.00113507,84511.0,84510.0,0.35710629]
[1744906453426,0.00113507,84511.0,84510.0,0.37164714]
[1744906453820,0.00113507,84511.0,84510.0,0.35710629]
[1744906454818,0.00113507,84511.0,84510.0,0.23765838]
[1744906455282,0.23779065,84511.0,84510.0,0.001]
[1744906455421,0.00113507,84511.0,84510.0,0.001]
[1744906455631,0.00113507,84511.0,84510.0,0.23765838]
[1744906456369,0.00113507,84511.0,84496.0,0.23669517]
[1744906456370,0.01183417,84501.0,84496.0,0.23669517]
[1744906456608,0.01183459,84498.0,84494.0,0.34]
[1744906456757,0.01183417,84501.0,84497.0,0.57669452]
[1744906456952,0.01183319,84508.0,84502.0,0.01183403]
[1744906457152,0.24708432,84508.0,84501.0,0.01183417]
[1744906457386,0.00236337,84507.0,84502.0,0.34]
[1744906457565,0.09783507,84511.0,84507.0,0.34]
[1744906457772,0.24849172,84510.0,84507.0,0.34]
[1744906458109,0.23666174,84509.0,84507.0,0.34]
[1744906458472,0.01183319,84508.0,84504.0,0.34]
[1744906458669,0.01183291,84510.0,84507.0,0.23666678]
[1744906458876,0.23666398,84508.0,84506.0,0.34]
[1744906459054,0.01183361,84505.0,84501.0,0.01183417]
[1744906459258,0.23667397,84505.0,84499.0,0.01183445]
[1744906459497,0.24851307,84503.0,84499.0,0.2485218]
[1744906459891,0.24850348,84506.0,84502.0,0.23668078]
[1744906460068,0.01183347,84506.0,84501.0,0.23668148]
[1744906460274,0.01183361,84505.0,84501.0,0.23668148]
[1744906460456,0.01183333,84507.0,84500.0,0.01183431]
[1744906460656,0.01183319,84508.0,84506.0,0.23666937]
[1744906460913,0.01183319,84508.0,84503.0,0.01183389]
[1744906460914,0.23666697,84507.0,84504.0,0.01183375]
[1744906461148,0.01183347,84506.0,84500.0,0.35183431]
[1744906461638,0.23668078,84502.0,84500.0,0.34]
[1744906461836,0.23668078,84502.0,84498.0,0.51047911]
[1744906461837,0.23668639,84500.0,84498.0,0.51047911]
[1744906462061,0.01183417,84501.0,84499.0,0.23668853]
[1744906462263,0.01183305,84509.0,84502.0,0.01183403]
[1744906462678,0.23666678,84507.0,84503.0,0.23667519]
[1744906462903,0.01183305,84509.0,84502.0,0.01183403]
[1744906463082,0.24849864,84508.0,84505.0,0.23667043]
[1744906463223,0.09783507,84511.0,84508.0,0.01183319]
[1744906463423,0.09783507,84511.0,84509.0,0.23666118]
[1744906463635,0.10966784,84511.0,84503.0,0.01183389]
[1744906463824,0.09783507,84511.0,84509.0,0.2366601]
[1744906464032,0.00213507,84511.0,84509.0,0.2366601]
[1744906464449,0.00213507,84511.0,84510.0,0.01962234]
[1744906466465,0.00213507,84511.0,84504.0,0.01183375]
[1744906466687,0.00213507,84511.0,84509.0,0.23665954]
[1744906468121,0.00213507,84511.0,84509.0,0.23665944]
[1744906468625,0.01183333,84507.0,84504.0,0.34]
[1744906468859,0.23666268,84509.0,84504.0,0.35183375]
[1744906468982,0.24849778,84508.0,84504.0,0.34]
[1744906469176,0.00213507,84511.0,84508.0,0.23666398]
[1744906469402,0.00213507,84511.0,84509.0,0.23666075]
[1744906470623,0.00213507,84511.0,84510.0,0.23665838]
[1744906471164,0.00213507,84511.0,84507.0,0.34]
[1744906471363,0.01183347,84506.0,84503.0,0.23667708]
[1744906471509,0.23666398,84508.0,84504.0,0.57667421]
[1744906471718,0.23667238,84505.0,84504.0,0.34]
[1744906471920,0.23670599,84493.0,84492.0,0.05787374]
[1744906472115,0.2367116,84491.0,84490.0,0.51047911]
[1744906472344,0.01183501,84495.0,84485.0,0.23672834]
[1744906472345,0.01183487,84496.0,84486.0,0.01183628]
[1744906472560,0.01183487,84496.0,84484.0,0.10456619]
[1744906472561,0.23672561,84486.0,84484.0,0.01826976]
[1744906472823,0.23909178,84485.0,84484.0,0.01826976]
[1744906473157,0.00236337,84485.0,84484.0,0.01826976]
[1744906473517,0.01183529,84493.0,84484.0,0.01826976]
[1744906473518,0.01183347,84506.0,84498.0,0.01183459]
[1744906473701,0.01183417,84501.0,84489.0,0.51047911]
[1744906474126,0.01183347,84506.0,84489.0,0.51047911]
[1744906474330,0.2367144,84490.0,84489.0,0.85047911]
[1744906474466,0.2367144,84490.0,84489.0,0.34]
[1744906475630,0.23907777,84490.0,84489.0,0.34]
[1744906475819,0.2367144,84490.0,84489.0,0.34]
[1744906476023,0.23675083,84477.0,84476.0,0.30277188]
[1744906476226,0.23675923,84474.0,84473.0,0.0004212]
[1744906476641,0.23676484,84472.0,84471.0,0.0004212]
[1744906477185,0.23676484,84472.0,84471.0,0.00055645]
[1744906479659,0.23676484,84472.0,84471.0,0.05786201]
[1744906480046,0.23680484,84472.0,84471.0,0.05786201]
[1744906480261,4e-05,84472.0,84471.0,0.63462965]
[1744906481083,4e-05,84472.0,84471.0,0.39786201]
[1744906481292,4e-05,84472.0,84471.0,0.63462965]
[1744906481499,0.23680484,84472.0,84471.0,0.39786201]
[1744906481712,0.23680484,84472.0,84471.0,0.29617812]
[1744906481912,0.23677045,84470.0,84469.0,0.0004212]
[1744906482112,0.23913382,84470.0,84469.0,0.0004212]
[1744906482571,0.001,84470.0,84469.0,0.0492892]
[1744906482772,0.001,84470.0,84469.0,0.0004212]
[1744906482909,0.23777045,84470.0,84469.0,0.0004212]
[1744906483477,0.001,84470.0,84469.0,0.0004212]
[1744906483654,0.23777045,84470.0,84469.0,0.0004212]
[1744906483855,0.23777045,84470.0,84469.0,0.04738694]
[1744906485498,0.001,84470.0,84469.0,0.62416019]
[1744906486228,0.001,84470.0,84469.0,0.38738694]
[1744906486427,0.002,84470.0,84469.0,0.38738694]
[1744906487026,0.002,84470.0,84469.0,0.62416019]
[1744906489870,0.002,84470.0,84469.0,0.44973886]
[1744906490476,0.002,84470.0,84469.0,0.4972037]
[1744906491177,0.002,84470.0,84469.0,0.61665161]
[1744906491336,4e-05,84472.0,84471.0,0.23676764]
[1744906491535,0.00104,84472.0,84471.0,0.23676764]
[1744906491922,0.00104,84472.0,84471.0,0.57676764]
[1744906493729,0.00104,84472.0,84471.0,0.69621555]
[1744906493991,0.00104,84472.0,84471.0,0.7107564]
[1744906494190,4e-05,84474.0,84473.0,0.59130289]
[1744906494400,4e-05,84474.0,84473.0,0.7107508]
[1744906498372,0.0008428,84505.0,84504.0,0.23667518]
[1744906498514,0.0009779,84505.0,84504.0,0.23667518]
[1744906498713,0.0009779,84505.0,84504.0,0.23904165]
[1744906498937,0.0009779,84505.0,84504.0,0.35848956]
[1744906499144,0.0009779,84505.0,84504.0,0.35612309]
[1744906499349,0.0009779,84505.0,84504.0,0.69612309]
[1744906499547,0.0009779,84505.0,84504.0,0.71066394]
[1744906499724,0.0489,84527.0,84526.0,0.23661358]
[1744906500173,0.002,84529.0,84528.0,0.23660798]
[1744906500411,0.003,84529.0,84528.0,0.23660798]
[1744906500928,0.003,84529.0,84528.0,0.28512515]
[1744906501211,0.003,84529.0,84528.0,0.04851717]
[1744906501368,0.003,84529.0,84528.0,0.23660798]
[1744906501580,0.002,84529.0,84528.0,0.28488984]
[1744906503371,0.002,84529.0,84528.0,0.41319035]
[1744906503751,0.002,84529.0,84528.0,0.41419035]
[1744906504518,0.06072718,84551.0,84544.0,0.2365632]
[1744906504707,0.00097785,84545.0,84544.0,0.2365632]
[1744906505112,0.00097785,84545.0,84543.0,0.23656554]
[1744906507404,0.01182844,84542.0,84537.0,0.23658279]
[1744906507603,0.24839559,84543.0,84539.0,0.2365763]
[1744906507803,0.24839559,84543.0,84538.0,0.23657905]
[1744906508006,0.24840297,84541.0,84535.0,0.52230852]
[1744906508329,0.01182886,84539.0,84535.0,0.51047911]
[1744906508528,0.01182858,84541.0,84538.0,0.23657863]
[1744906508744,0.25036719,84545.0,84539.0,0.23657669]
[1744906508888,0.00197785,84545.0,84535.0,0.51047911]
[1744906509102,0.01380587,84545.0,84537.0,0.01182913]
[1744906509320,0.01380587,84545.0,84540.0,0.23657161]
[1744906509522,0.24839139,84544.0,84540.0,0.23657161]
[1744906509730,0.01182816,84544.0,84540.0,0.23657161]
[1744906509929,0.01380587,84545.0,84542.0,0.23656615]
[1744906510251,0.00197785,84545.0,84543.0,0.23656328]
[1744906510471,0.00197785,84545.0,84544.0,0.2365632]
[1744906511247,0.00197785,84545.0,84544.0,0.23892861]
[1744906511784,0.00197785,84545.0,84544.0,0.35837652]
[1744906511915,0.00197785,84545.0,84544.0,0.35601111]
[1744906512328,0.01182858,84541.0,84535.0,0.51047911]
[1744906512528,0.23658559,84536.0,84535.0,0.51047911]
[1744906512755,0.01183011,84530.0,84526.0,0.51047911]
[1744906512925,0.01183011,84530.0,84521.0,0.24331849]
[1744906512926,0.01183081,84525.0,84521.0,0.24331849]
[1744906513099,0.01183151,84520.0,84515.0,0.2366438]
[1744906513300,0.23662198,84523.0,84518.0,0.23663429]
[1744906513716,0.01183137,84521.0,84518.0,0.23663429]
[1744906513922,0.01183137,84521.0,84516.0,0.01183207]
[1744906513923,0.01182997,84531.0,84526.0,0.23661288]
[1744906514127,0.24844183,84527.0,84523.0,0.23662091]
[1744906514325,0.0492,84529.0,84527.0,0.2366096]
[1744906514530,0.01183039,84528.0,84523.0,0.01183109]
[1744906514736,0.01183095,84524.0,84518.0,0.01183179]
[1744906514939,0.01183053,84527.0,84524.0,0.23661794]
[1744906515134,0.01183067,84526.0,84523.0,0.23662043]
[1744906515637,0.24844719,84525.0,84522.0,0.236624]
[1744906515902,0.24846325,84520.0,84517.0,0.23663794]
[1744906516051,0.01183179,84518.0,84515.0,0.04871641]
[1744906516249,0.23664002,84517.0,84515.0,0.04871641]
[1744906516605,0.00236337,84516.0,84515.0,0.04871641]
[1744906516751,0.0477,84516.0,84515.0,0.04871641]
[1744906517362,0.0478013,84516.0,84515.0,0.04871641]
[1744906519423,0.0478013,84516.0,84515.0,0.28536079]
[1744906519746,0.0478013,84516.0,84515.0,0.04871641]
[1744906520163,0.28444288,84516.0,84515.0,0.04871641]
[1744906521541,0.24851223,84503.0,84501.0,0.34]
[1744906521792,0.01183417,84501.0,84493.0,0.51047911]
[1744906522014,0.23664438,84515.0,84493.0,0.51047911]
[1744906522015,0.01183263,84512.0,84508.0,0.24849717]
[1744906522211,0.01183277,84511.0,84503.0,0.24851187]
[1744906522420,0.24850618,84505.0,84500.0,0.74716378]
[1744906522567,0.01183361,84505.0,84500.0,0.51047911]
[1744906522968,0.01183361,84505.0,84501.0,0.23668316]
[1744906523168,0.24850349,84506.0,84502.0,0.23667866]
[1744906523372,0.01183375,84504.0,84501.0,0.24574026]
[1744906523572,0.24850679,84505.0,84502.0,0.23668003]
[1744906523741,0.24850939,84504.0,84501.0,0.29388418]
[1744906523942,0.01183361,84505.0,84501.0,0.29388418]
[1744906524165,0.01183361,84505.0,84501.0,0.30571835]
[1744906524452,0.01183361,84505.0,84503.0,0.23667787]
[1744906524453,0.24850656,84505.0,84503.0,0.23667787]
[1744906525626,0.24849772,84508.0,84503.0,0.23667787]
[1744906525836,0.0458,84515.0,84505.0,0.23667238]
[1744906526001,0.01183249,84513.0,84508.0,0.01183319]
[1744906526196,0.2484888,84511.0,84506.0,0.23666958]
[1744906526442,0.01183305,84509.0,84506.0,0.23666958]
[1744906526653,0.24849439,84509.0,84506.0,0.23666958]
[1744906526965,0.01183319,84508.0,84505.0,0.23667193]
[1744906527158,0.24851265,84503.0,84501.0,0.04895947]
[1744906527362,0.01183389,84503.0,84501.0,0.2856429]
[1744906527692,0.01183333,84507.0,84503.0,0.23667798]
[1744906527843,0.01183305,84509.0,84503.0,0.24851187]
[1744906528044,0.24849516,84509.0,84506.0,0.23666817]
[1744906528449,0.24849425,84509.0,84505.0,0.23667226]
[1744906528771,0.24850632,84505.0,84501.0,0.29329926]
[1744906528927,0.24850632,84505.0,84502.0,0.23668003]
[1744906528928,0.01183375,84504.0,84502.0,0.23668003]
[1744906529301,0.23668072,84503.0,84501.0,0.05662107]
[1744906529470,0.23668078,84502.0,84501.0,0.05662107]
[1744906529676,0.23667798,84503.0,84496.0,0.01183487]
[1744906529677,0.23667798,84503.0,84500.0,0.23668622]
[1744906529858,0.24851187,84503.0,84500.0,0.23668622]
[1744906530024,0.01183389,84503.0,84500.0,0.23668622]
[1744906530389,0.24850893,84504.0,84501.0,0.23668241]
[1744906530522,0.2485061,84505.0,84502.0,0.23667806]
[1744906530727,0.01183375,84504.0,84501.0,0.24536148]
[1744906530928,0.01419712,84504.0,84501.0,0.24536148]
[1744906531895,0.23667798,84503.0,84501.0,0.00868333]
[1744906532112,0.23904415,84502.0,84496.0,0.04837359]
[1744906532284,0.24852379,84499.0,84496.0,0.04837359]
[1744906532610,0.01183403,84502.0,84495.0,0.23670039]
[1744906532842,0.24851849,84501.0,84498.0,0.23668653]
[1744906532980,0.01183333,84507.0,84501.0,0.01183417]
[1744906533208,0.01183347,84506.0,84502.0,0.01183403]